bitfinex/quotes_SOLUSD_20241202
["timestamp","ask_amount","ask_price","bid_price","bid_amount"]
[1733154193179,5.0,229.29,229.14,12.6156616]
[1733154193484,33.3082,229.31,229.19,12.6156616]
[1733154193703,33.3082,229.31,229.21,20.1060033]
[1733154194678,33.3082,229.31,229.22,20.1060033]
[1733154194883,33.3082,229.31,229.2,20.1060033]
[1733154195081,0.08445378,229.26,229.2,20.1060033]
[1733154196103,0.08445378,229.26,229.22,20.1060033]
[1733154196597,0.08445378,229.26,229.14,0.87054017]
[1733154196784,0.08445378,229.26,229.21,20.1060033]
[1733154196978,0.08445378,229.26,229.21,26.27]
[1733154198609,0.08445378,229.26,229.19,26.27]
[1733154198892,0.08445378,229.26,229.19,46.3760033]
[1733154199885,0.08445378,229.26,229.19,26.27]
[1733154200926,0.08445378,229.26,229.18,26.27]
[1733154201101,0.01580024,229.26,229.18,26.27]
[1733154201980,0.01580024,229.26,229.19,20.1060033]
[1733154203177,0.01580024,229.26,229.18,20.1060033]
[1733154203377,0.01580024,229.26,229.17,20.1060033]
[1733154204411,30.601,229.25,229.14,20.1060033]
[1733154204582,30.601,229.25,229.16,20.1060033]
[1733154204778,30.601,229.25,229.17,20.1060033]
[1733154205880,0.01580024,229.26,229.24,20.1060033]
[1733154206105,0.01580024,229.26,229.25,20.1060033]
[1733154206280,0.01580024,229.26,229.23,20.1060033]
[1733154207210,17.57767715,229.3,229.23,20.1060033]
[1733154207503,17.57767715,229.3,229.16,26.27]
[1733154207504,17.57767715,229.3,229.19,20.1060033]
[1733154207702,17.57767715,229.3,229.17,20.1060033]
[1733154208080,17.57767715,229.3,229.19,20.1060033]
[1733154208281,17.57767715,229.3,229.17,26.27]
[1733154208517,17.57767715,229.3,229.18,20.1060033]
[1733154208518,19.37352095,229.3,229.18,20.1060033]
[1733154209082,19.37352095,229.3,229.18,46.3760033]
[1733154209386,19.37352095,229.3,229.2,20.1060033]
[1733154209985,19.37352095,229.3,229.18,26.27]
[1733154209986,19.37352095,229.3,229.18,46.3760033]
[1733154211507,19.37352095,229.3,229.2,20.1060033]
[1733154211713,19.37352095,229.3,229.18,20.1060033]
[1733154211912,19.37352095,229.3,229.22,20.1060033]
[1733154212086,30.0,229.26,229.22,20.1060033]
[1733154212284,30.0,229.26,229.24,46.3760033]
[1733154212707,19.37352095,229.3,229.24,46.3760033]
[1733154213013,19.37352095,229.3,229.21,20.1060033]
[1733154213191,19.37352095,229.3,229.22,26.27]
[1733154213408,19.37352095,229.3,229.26,26.27]
[1733154213409,1.7958438,229.3,229.26,26.27]
[1733154214815,1.7958438,229.3,229.24,26.27]
[1733154215885,1.7958438,229.3,229.23,26.27]
[1733154216088,1.7958438,229.3,229.29,62.6114567]
[1733154216409,1.7958438,229.3,229.29,63.48117538]
[1733154216601,1.7958438,229.3,229.29,39.70429138]
[1733154216799,1.7958438,229.3,229.29,62.6114567]
[1733154217004,1.7958438,229.3,229.26,0.8697762]
[1733154217005,1.7958438,229.3,229.27,26.27]
[1733154217406,32.2444,229.43,229.29,26.27]
[1733154217590,32.2444,229.43,229.33,26.27]
[1733154218095,32.2444,229.43,229.3,38.8345727]
[1733154218296,32.2444,229.43,229.28,12.5645727]
[1733154218810,20.0,229.4,229.28,12.5645727]
[1733154219011,20.0,229.4,229.29,26.27]
[1733154219703,20.0,229.4,229.3,38.8345727]
[1733154220029,32.2444,229.43,229.3,38.8345727]
[1733154220316,20.0,229.4,229.3,26.27]
[1733154220811,20.0,229.4,229.27,26.27]
[1733154220812,46.1262,229.39,229.27,26.27]
[1733154221015,20.0,229.36,229.27,26.27]
[1733154221320,20.0,229.36,229.27,38.8345727]
[1733154221615,20.0,229.36,229.27,26.27]
[1733154221798,20.0,229.36,229.26,26.27]
[1733154222113,20.0,229.36,229.26,38.8345727]
[1733154222307,20.0,229.36,229.26,26.27]
[1733154222609,30.0,229.33,229.26,26.27]
[1733154223004,30.0,229.33,229.25,38.8345727]
[1733154223604,30.0,229.33,229.27,26.27]
[1733154223988,30.0,229.33,229.27,38.8345727]
[1733154225316,30.0,229.33,229.28,26.27]
[1733154225693,30.0,229.33,229.28,38.8345727]
[1733154225924,30.0,229.33,229.28,26.27]
[1733154226511,46.1262,229.39,229.28,26.27]
[1733154226696,46.1262,229.39,229.3,26.27]
[1733154228319,46.1262,229.39,229.29,38.8345727]
[1733154228614,46.1262,229.39,229.24,13.43436331]
[1733154228615,33.2118,229.39,229.32,26.27]
[1733154228802,30.0,229.33,229.32,26.27]
[1733154228998,33.2118,229.39,229.32,26.27]
[1733154229716,45.6594,229.45,229.33,38.8345727]
[1733154230220,45.6594,229.45,229.35,12.5645727]
[1733154230407,32.7114,229.45,229.35,38.8345727]
[1733154230595,32.7114,229.45,229.37,12.5645727]
[1733154230802,32.7114,229.45,229.38,26.27]
[1733154233921,32.7114,229.45,229.4,26.27]
[1733154234811,32.7114,229.45,229.38,26.27]
[1733154235904,32.7114,229.45,229.35,38.8345727]
[1733154236426,32.7114,229.45,229.35,26.27]
[1733154237110,32.7114,229.45,229.34,26.27]
[1733154239014,32.7114,229.45,229.32,26.27]
[1733154239727,32.7114,229.45,229.34,26.27]
[1733154240209,32.7114,229.45,229.36,26.27]
[1733154240940,32.7114,229.45,229.36,38.8345727]
[1733154241104,32.7114,229.45,229.36,39.70406713]
[1733154242241,32.7114,229.45,229.36,26.27]
[1733154242622,32.7114,229.45,229.36,38.8345727]
[1733154243849,32.7114,229.45,229.38,38.8345727]
[1733154244437,32.7114,229.45,229.38,26.27]
[1733154244930,32.7114,229.45,229.37,26.27]
[1733154245234,32.7114,229.45,229.37,38.8345727]
[1733154245445,32.7114,229.45,229.39,26.27]
[1733154248025,32.7114,229.45,229.4,26.27]
[1733154248333,0.5,229.46,229.44,26.27]
[1733154248641,0.5,229.46,229.44,38.8345727]
[1733154248949,0.5,229.46,229.44,26.27]
[1733154249416,0.5,229.46,229.43,26.27]
[1733154250623,0.5,229.46,229.44,26.27]
[1733154251921,0.5,229.46,229.44,38.8345727]
[1733154252121,0.5,229.46,229.44,26.27]
[1733154253526,0.5,229.46,229.43,8.02630632]
[1733154254059,31.7001,229.5,229.44,8.02630632]
[1733154254841,43.1544,229.55,229.41,0.86924004]
[1733154255047,43.1544,229.55,229.42,8.02630632]
[1733154255630,43.1544,229.55,229.38,27.01929334]
[1733154255831,43.1544,229.55,229.42,8.02630632]
[1733154256849,43.1544,229.55,229.43,8.02630632]
[1733154257355,43.1544,229.55,229.45,8.02630632]
[1733154257665,43.1544,229.55,229.44,8.02630632]
[1733154258335,43.1544,229.55,229.4,27.01922343]
[1733154258336,43.1544,229.55,229.46,8.02630632]
[1733154258541,43.1544,229.55,229.43,8.02630632]
[1733154259328,43.1544,229.55,229.46,8.02630632]
[1733154259532,43.1544,229.55,229.44,8.02630632]
[1733154260551,43.1544,229.55,229.43,8.02630632]
[1733154262055,43.1544,229.55,229.44,26.15]
[1733154263053,43.1544,229.55,229.46,8.02630632]
[1733154263548,43.1544,229.55,229.47,26.15]
[1733154264159,43.1544,229.55,229.48,34.17630632]
[1733154264760,43.1544,229.55,229.48,26.15]
[1733154265828,31.0681,229.55,229.48,26.15]
[1733154266728,31.0681,229.55,229.48,34.17630632]
[1733154266933,31.0681,229.55,229.48,26.15]
[1733154267163,31.0681,229.55,229.48,34.17630632]
[1733154267461,31.0681,229.55,229.48,26.15]
[1733154267830,31.0681,229.55,229.48,34.17630632]
[1733154268030,31.0681,229.55,229.43,27.01910589]
[1733154268230,31.0681,229.55,229.48,26.15]
[1733154269452,31.0681,229.55,229.49,34.17630632]
[1733154269649,31.0681,229.55,229.5,8.02630632]
[1733154269855,31.0681,229.55,229.49,34.17630632]
[1733154270156,31.0681,229.55,229.49,26.15]
[1733154270933,31.0681,229.55,229.48,26.15]
[1733154271333,31.0681,229.55,229.48,34.17630632]
[1733154271737,20.0,229.65,229.53,34.17630632]
[1733154271957,30.923,229.68,229.53,34.17630632]
[1733154272761,30.923,229.68,229.5,26.15]
[1733154273068,30.923,229.68,229.54,26.15]
[1733154273365,20.0,229.65,229.54,26.15]
[1733154274838,44.0432,229.64,229.44,10.896]
[1733154275044,20.0,229.61,229.48,26.15]
[1733154275255,20.0,229.61,229.5,26.15]
[1733154276462,20.0,229.61,229.49,26.15]
[1733154276747,20.0,229.61,229.5,34.17630632]
[1733154279670,20.0,229.61,229.49,26.15]
[1733154280250,20.0,229.61,229.5,34.17630632]
[1733154281160,20.0,229.57,229.45,26.15]
[1733154281363,20.0,229.57,229.48,34.17630632]
[1733154281553,31.6448,229.6,229.48,34.17630632]
[1733154281882,31.6448,229.6,229.48,26.15]
[1733154282558,31.6448,229.6,229.47,26.15]
[1733154282771,31.6448,229.6,229.49,26.15]
[1733154283965,31.6448,229.6,229.41,27.0191548]
[1733154284166,31.6448,229.6,229.47,26.15]
[1733154284960,20.0,229.57,229.47,26.15]
[1733154285278,20.0,229.57,229.46,26.15]
[1733154285781,31.6448,229.6,229.49,26.15]
[1733154286277,31.6448,229.6,229.5,34.17630632]
[1733154289084,31.6448,229.6,229.5,26.15]
[1733154290285,31.6448,229.6,229.48,26.15]
[1733154291077,30.0,229.54,229.48,26.15]
[1733154291290,30.0,229.54,229.52,26.15]
[1733154292165,30.0,229.54,229.48,26.15]
[1733154293264,30.0,229.54,229.45,26.15]
[1733154293993,30.0,229.54,229.47,26.15]
[1733154294360,30.0,229.54,229.49,26.15]
[1733154295780,30.0,229.54,229.48,26.15]
[1733154296768,30.0,229.54,229.49,26.15]
[1733154297467,30.9973,229.52,229.45,26.15]
[1733154297781,30.0,229.51,229.45,26.15]
[1733154297981,30.0,229.51,229.42,26.15]
[1733154298699,30.0,229.51,229.33,0.86954797]
[1733154298865,30.0,229.51,229.39,8.02630632]
[1733154299765,30.0,229.51,229.39,34.17630632]
[1733154301175,30.0,229.51,229.35,26.15]
[1733154301383,30.0,229.51,229.38,26.15]
[1733154301867,20.0,229.47,229.31,26.15]
[1733154302063,30.0,229.46,229.34,26.15]
[1733154302391,30.0,229.46,229.35,34.17630632]
[1733154302695,30.0,229.46,229.37,34.17630632]
[1733154303376,30.0,229.46,229.38,34.17630632]
[1733154303578,30.0,229.46,229.31,27.01958275]
[1733154303898,30.0,229.46,229.33,34.17630632]
[1733154304072,30.0,229.46,229.33,26.15]
[1733154304073,30.0364,229.45,229.33,26.15]
[1733154304278,12.3856,229.41,229.24,13.94334855]
[1733154304483,12.3856,229.41,229.28,8.02630632]
[1733154304672,12.3856,229.41,229.3,26.15]
[1733154305075,30.0364,229.4,229.3,26.15]
[1733154305281,30.0,229.38,229.28,26.15]
[1733154305469,30.0,229.38,229.2,2.76918228]
[1733154305676,30.0,229.38,229.25,26.15]
[1733154306287,30.0364,229.37,229.19,0.87004247]
[1733154306493,30.0,229.34,229.23,8.02630632]
[1733154306684,12.9592,229.33,229.18,0.87017694]
[1733154306991,12.9592,229.33,229.21,34.17630632]
[1733154307195,12.9592,229.33,229.21,26.15]
[1733154307372,30.0,229.32,229.21,26.15]
[1733154307887,30.9091,229.31,229.2,26.15]
[1733154308397,30.9091,229.31,229.16,26.15]
[1733154308579,30.0,229.29,229.19,8.02630632]
[1733154308777,30.0,229.29,229.17,0.8702398]
[1733154308986,30.0,229.29,229.21,8.02630632]
[1733154309170,30.0,229.29,229.18,8.02630632]
[1733154309377,30.0,229.29,229.17,8.02630632]
[1733154309570,30.0,229.29,229.18,34.17630632]
[1733154309780,30.0,229.29,229.19,8.02630632]
[1733154309993,30.0,229.29,229.2,8.02630632]
[1733154310167,30.0,229.29,229.21,34.17630632]
[1733154310674,30.0,229.29,229.22,34.17630632]
[1733154311387,30.0,229.29,229.22,26.15]
[1733154312182,30.0,229.29,229.21,8.02630632]
[1733154312183,30.0,229.29,229.2,34.17630632]
[1733154312473,30.0,229.29,229.12,26.15]
[1733154312474,20.0,229.25,229.12,26.15]
[1733154312684,20.0,229.25,229.11,8.02630632]
[1733154313088,43.2876,229.28,229.1,8.02630632]
[1733154313393,20.0,229.25,229.1,8.02630632]
[1733154313576,30.0,229.22,229.11,26.15]
[1733154314694,31.4314,229.21,229.08,26.15]
[1733154314893,30.0,229.18,229.09,8.02630632]
[1733154315702,30.0,229.18,229.08,26.15]
[1733154315703,30.0,229.18,229.08,38.72852747]
[1733154316077,30.0,229.18,229.09,12.57852747]
[1733154317298,30.0,229.18,229.16,12.57852747]
[1733154317498,30.0,229.18,229.17,12.57852747]
[1733154317800,22.14079732,229.18,229.17,12.57852747]
[1733154318182,22.14079732,229.18,229.14,38.72852747]
[1733154318382,22.14079732,229.18,229.13,26.15]
[1733154319101,22.14079732,229.18,229.17,12.57852747]
[1733154319684,22.14079732,229.18,229.16,26.15]
[1733154319899,22.14079732,229.18,229.17,12.57852747]
[1733154320199,22.14079732,229.18,229.15,12.57852747]
[1733154320380,22.14079732,229.18,229.16,12.57852747]
[1733154320700,22.14079732,229.18,229.09,27.02037547]
[1733154320914,22.14079732,229.18,229.11,26.15]
[1733154321092,22.14079732,229.18,229.04,10.9148]
[1733154321093,12.8952,229.17,229.05,26.15]
[1733154321280,30.0,229.15,229.05,26.15]
[1733154321476,30.0,229.15,229.02,12.57852747]
[1733154321689,32.041,229.14,229.03,12.57852747]
[1733154321998,32.041,229.14,229.06,12.57852747]
[1733154322178,32.041,229.14,229.07,12.57852747]
[1733154322786,32.041,229.14,229.06,12.57852747]
[1733154322996,32.041,229.14,229.08,12.57852747]
[1733154323292,32.041,229.14,229.07,12.57852747]
[1733154323909,32.1678,229.2,229.13,12.57852747]
[1733154324104,32.1678,229.2,229.15,12.57852747]
[1733154324297,32.1678,229.2,229.17,12.57852747]
[1733154325109,30.0,229.18,229.17,12.57852747]
[1733154326121,30.0,229.18,229.15,12.57852747]
[1733154326282,30.0,229.18,229.14,12.57852747]
[1733154326906,30.0,229.17,229.12,12.57852747]
[1733154327214,30.0,229.17,229.13,12.57852747]
[1733154327414,30.0,229.17,229.07,27.02055956]
[1733154327415,30.0,229.17,229.11,38.72852747]
[1733154327703,30.0,229.17,229.12,12.57852747]
[1733154328005,30.0,229.17,229.13,12.57852747]
[1733154328215,30.0,229.17,229.14,12.57852747]
[1733154328402,30.0,229.17,229.11,38.72852747]
[1733154328631,30.0,229.17,228.7,19.8609377]
[1733154328632,5.0,228.8,228.7,19.8609377]
[1733154328913,5.0,228.84,228.71,0.99939411]
[1733154329208,30.0,228.79,228.72,0.87203622]
[1733154329398,30.0,228.79,228.77,12.57852747]
[1733154329721,30.0,228.79,228.49,21.07090278]
[1733154329722,5.0,228.82,228.78,0.99908833]
[1733154330009,30.0,228.79,228.78,0.99908833]
[1733154330394,38.29376431,228.79,228.78,0.99908833]
[1733154330597,27.35313887,228.79,228.73,12.57852747]
[1733154330799,3.18990935,228.78,228.73,12.57852747]
[1733154330992,30.0,228.73,228.71,12.57852747]
[1733154331194,14.68487955,228.73,228.71,12.57852747]
[1733154331696,14.68487955,228.73,228.72,20.18348967]
[1733154332400,14.68487955,228.73,228.72,44.83225779]
[1733154333611,14.68487955,228.73,228.72,70.98225779]
[1733154336590,14.68487955,228.73,228.72,70.11037367]
[1733154336790,14.68487955,228.73,228.72,70.98229905]
[1733154337813,30.0,228.73,228.72,70.98229905]
[1733154337999,20.0,228.93,228.74,26.15]
[1733154338194,20.0,228.93,228.77,46.33348967]
[1733154338412,20.0,228.93,228.77,26.15]
[1733154338717,20.0,228.93,228.77,46.33348967]
[1733154338916,30.0,228.78,228.77,70.11037367]
[1733154339498,20.0,228.93,228.77,70.11037367]
[1733154339499,20.0,228.93,228.78,23.776884]
[1733154339709,20.0,228.93,228.79,20.18348967]
[1733154339897,30.0,228.8,228.79,20.18348967]
[1733154340490,30.0,228.8,228.75,20.18348967]
[1733154340692,30.0,228.8,228.77,20.18348967]
[1733154341239,30.0,228.8,228.75,26.15]
[1733154341394,30.0,228.8,228.71,20.18348967]
[1733154341596,30.0,228.8,228.71,46.33348967]
[1733154342016,30.0,228.8,228.73,20.18348967]
[1733154342215,30.0,228.8,228.74,46.33348967]
[1733154342417,30.0,228.8,228.75,20.18348967]
[1733154342619,30.0,228.8,228.76,20.18348967]
[1733154342943,30.0,228.8,228.74,46.33348967]
[1733154343090,30.0,228.8,228.74,26.15]
[1733154343422,30.0,228.8,228.73,26.15]
[1733154344118,30.0,228.8,228.69,26.15]
[1733154344329,30.0,228.8,228.69,46.33348967]
[1733154344827,30.0,228.8,228.72,23.776884]
[1733154345317,30.0,228.8,228.72,21.796864]
[1733154345996,30.0,228.8,228.71,20.18348967]
[1733154346194,30.0,228.8,228.73,20.18348967]
[1733154346505,30.0,228.8,228.74,20.18348967]
[1733154346720,30.0,228.8,228.73,20.18348967]
[1733154347017,30.0,228.8,228.72,20.18348967]
[1733154347230,30.0,228.8,228.73,20.18348967]
[1733154347601,30.0,228.8,228.74,20.18348967]
[1733154348021,30.0,228.8,228.75,20.18348967]
[1733154348333,30.0,228.8,228.73,46.33348967]
[1733154349728,30.0,228.8,228.69,0.87192695]
[1733154349729,30.0,228.8,228.71,20.18348967]
[1733154349909,30.0,228.8,228.75,20.18348967]
[1733154350224,30.0,228.8,228.74,20.18348967]
[1733154350429,30.0,228.8,228.72,20.18348967]
[1733154351530,30.0,228.79,228.72,20.18348967]
[1733154352109,30.0,228.79,228.71,41.05548866]
[1733154352510,30.0,228.79,228.75,20.18348967]
[1733154352721,30.0,228.79,228.72,26.15]
[1733154352722,30.0,228.79,228.76,20.18348967]
[1733154353041,28.5,228.79,228.76,20.18348967]
[1733154353523,28.5,228.79,228.77,26.15]
[1733154353745,28.5,228.79,228.78,12.61063387]
[1733154353918,28.5,228.79,228.78,62.53751787]
[1733154354318,28.5,228.79,228.78,75.66751787]
[1733154354517,28.5,228.79,228.78,62.53751787]
[1733154355222,41.88718335,228.96,228.8,26.15]
[1733154355428,41.88718335,228.96,228.8,38.76063387]
[1733154355635,20.0,228.93,228.81,12.61063387]
[1733154355833,20.0,228.93,228.82,27.02156201]
[1733154356728,20.0,228.93,228.76,0.87152175]
[1733154356900,20.0,228.93,228.76,13.48215562]
[1733154357306,20.0,228.89,228.76,13.48215562]
[1733154357517,20.0,228.89,228.76,12.61063387]
[1733154357814,20.0,228.89,228.74,12.61063387]
[1733154358014,20.0,228.89,228.72,13.4824176]
[1733154358225,20.0,228.89,228.74,12.61063387]
[1733154358557,30.0,228.82,228.75,0.87179311]
[1733154358712,30.0,228.82,228.68,17.7966613]
[1733154358713,30.0,228.82,228.72,12.61063387]
[1733154358921,30.0,228.82,228.68,13.13079517]
[1733154359118,30.0,228.82,228.68,14.00280245]
[1733154360210,54.332884,228.81,228.68,0.5201613]
[1733154360403,20.0,228.78,228.68,0.5201613]
[1733154360728,30.0,228.79,228.69,0.87217693]
[1733154360908,30.0,228.79,228.72,12.61063387]
[1733154361422,30.0,228.77,228.72,12.61063387]
[1733154361826,30.0,228.77,228.73,12.61063387]
[1733154362028,30.0,228.77,228.75,12.61063387]
[1733154362216,30.0,228.77,228.76,37.25933318]
[1733154362423,12.8344,228.95,228.76,37.25933318]
[1733154362424,12.8344,228.95,228.8,20.0]
[1733154362625,12.8344,228.95,228.84,12.61063387]
[1733154362838,30.0,228.85,228.84,37.2589279]
[1733154363007,30.0,228.85,228.84,20.0]
[1733154363532,12.8344,228.95,228.84,20.0]
[1733154364121,12.8344,228.95,228.82,32.61063387]
[1733154364323,12.8344,228.95,228.8,20.8714897]
[1733154364530,12.8344,228.95,228.81,43.776884]
[1733154364735,12.8344,228.95,228.82,20.0]
[1733154364946,12.8344,228.95,228.82,20.87151831]
[1733154365233,12.8344,228.95,228.84,12.61063387]
[1733154365618,31.9793,228.97,228.88,20.16323734]
[1733154367031,31.9793,228.97,228.88,21.03455965]
[1733154367433,31.9793,228.97,228.9,20.16323734]
[1733154367616,5.0,229.09,228.9,21.03446855]
[1733154367937,32.0231,229.06,228.92,20.16323734]
[1733154368114,32.0231,229.06,228.96,20.16323734]
[1733154368314,30.0,228.97,228.96,20.16323734]
[1733154369122,30.0099,229.13,229.0,20.0]
[1733154369332,30.0099,229.13,229.03,20.16323734]
[1733154370027,30.0099,229.13,229.04,23.776884]
[1733154370327,32.6848,229.2,229.05,20.16323734]
[1733154370540,0.99680089,229.19,229.06,23.776884]
[1733154371044,0.99680089,229.19,229.07,21.03376991]
[1733154371622,0.99680089,229.19,229.08,23.776884]
[1733154372236,0.99680089,229.19,229.09,0.87046828]
[1733154372428,32.6848,229.2,229.1,23.776884]
[1733154372627,32.6848,229.2,229.12,23.776884]
[1733154373036,31.9808,229.29,229.12,23.776884]
[1733154373237,31.9808,229.29,229.14,23.776884]
[1733154373446,31.9808,229.29,229.11,46.31323734]
[1733154374045,31.9808,229.29,229.11,26.15]
[1733154374235,5.0,229.28,229.08,23.776884]
[1733154374541,20.0,229.26,229.09,0.87045707]
[1733154374911,20.0,229.26,229.12,23.776884]
[1733154375117,20.0,229.26,229.13,0.87030532]
[1733154377733,20.0,229.26,229.14,23.776884]
[1733154377945,20.0,229.26,229.15,0.87025972]
[1733154378221,20.0,229.26,229.16,23.776884]
[1733154380425,20.0,229.26,229.17,0.87018841]
[1733154380821,20.0,229.26,229.15,23.776884]
[1733154381028,20.0,229.26,229.15,24.64709898]
[1733154383318,20.0,229.26,229.11,27.0202226]
[1733154383522,20.0,229.26,229.11,0.8702226]
[1733154383723,20.0,229.22,229.07,12.90558608]
[1733154384138,20.0,229.22,229.08,20.16323734]
[1733154384340,20.0,229.26,229.1,20.16323734]
[1733154384549,20.0,229.26,229.11,0.87034243]
[1733154385442,20.0,229.26,229.12,23.776884]
[1733154386020,20.0,229.26,229.14,23.776884]
[1733154386946,20.0,229.26,229.13,23.776884]
[1733154387153,20.0,229.26,229.14,26.15]
[1733154387331,20.0,229.26,229.15,23.776884]
[1733154389048,20.0,229.26,229.09,26.15]
[1733154389524,23.776884,229.25,229.04,20.16323734]
[1733154389844,23.776884,229.25,229.03,0.87051094]
[1733154389845,20.0,229.14,229.03,0.87051094]
[1733154390046,20.0,229.12,229.03,27.02051094]
[1733154390942,20.0,229.12,229.05,26.15]
[1733154391655,20.0,229.12,229.06,0.87065712]
[1733154391943,20.0,229.14,229.07,49.926884]
[1733154392531,20.0,229.14,229.07,50.79746341]
[1733154393226,20.0,229.14,229.07,70.96070075]
[1733154393424,20.0,229.14,229.1,26.15]
[1733154393620,30.0,229.17,229.11,23.776884]
[1733154394353,30.0,229.17,229.08,26.15]
[1733154394536,30.0,229.17,229.01,20.16323734]
[1733154394848,30.0,229.17,229.02,26.15]
[1733154395347,20.0,229.14,229.04,26.15]
[1733154396223,30.0,229.11,229.06,26.15]
[1733154396425,30.0,229.11,229.07,23.776884]
[1733154397145,30.0,229.11,229.08,26.15]
[1733154397659,20.0,229.14,229.08,26.15]
[1733154397951,20.0,229.16,229.1,26.15]
[1733154398131,20.0,229.16,229.12,26.15]
[1733154398338,30.644,229.19,229.12,26.15]
[1733154399561,30.644,229.19,229.14,26.15]
[1733154399927,30.644,229.19,229.16,26.15]
[1733154400143,12.9474,229.24,229.16,26.15]
[1733154400650,32.3364,229.25,229.18,26.15]
[1733154401645,32.3364,229.25,229.19,49.926884]
[1733154402533,20.0,229.31,229.19,49.926884]
[1733154402732,20.0,229.31,229.19,50.79698894]
[1733154403329,32.5519,229.34,229.19,50.79698894]
[1733154403330,32.5519,229.34,229.19,70.96022628]
[1733154403527,32.5519,229.34,229.24,26.15]
[1733154403856,32.5519,229.34,229.25,49.926884]
[1733154405646,32.5519,229.34,229.28,26.15]
[1733154405949,32.5519,229.34,229.29,49.926884]
[1733154407343,32.5519,229.34,229.24,26.15]
[1733154407541,32.5519,229.34,229.18,26.15]
[1733154407846,20.0,229.31,229.18,26.15]
[1733154408654,20.0,229.31,229.19,26.15]
[1733154409560,20.0,229.31,229.17,26.15]
[1733154410446,20.0,229.31,229.13,27.02011759]
[1733154410632,20.0,229.31,229.15,26.15]
[1733154411557,20.0,229.31,229.18,26.15]
[1733154411752,20.0,229.31,229.19,23.776884]
[1733154412758,20.0,229.3,229.13,26.15]
[1733154413056,20.0,229.31,229.15,26.15]
[1733154413261,20.0,229.31,229.16,0.87020609]
[1733154414158,20.0,229.31,229.17,49.926884]
[1733154414345,20.0,229.31,229.21,23.776884]
[1733154415264,20.0,229.31,229.17,26.15]
[1733154415559,20.0,229.31,229.21,23.776884]
[1733154417043,20.0,229.31,229.21,50.797]
[1733154417343,32.5519,229.34,229.26,23.776884]
[1733154417545,32.5519,229.34,229.28,23.776884]
[1733154417736,32.5519,229.34,229.24,23.776884]
[1733154419140,32.5519,229.34,229.24,50.79690861]
[1733154420266,32.5519,229.34,229.24,49.926884]
[1733154420671,32.5519,229.34,229.24,50.79683079]
[1733154420845,32.5519,229.34,229.24,49.926884]
[1733154421956,20.0,229.31,229.22,23.776884]
[1733154422360,32.5519,229.34,229.24,43.94012134]
[1733154422566,31.4495,229.41,229.29,26.15]
[1733154422765,31.4495,229.41,229.3,23.776884]
[1733154422964,31.4495,229.41,229.29,26.15]
[1733154422965,31.4495,229.41,229.24,26.15]
[1733154423264,31.4495,229.41,229.2,20.16323734]
[1733154423470,5.0,229.4,229.21,23.776884]
[1733154423652,5.0,229.38,229.19,23.776884]
[1733154423852,20.0,229.38,229.19,36.34661984]
[1733154424163,20.0,229.38,229.21,26.15]
[1733154424375,20.0,229.38,229.22,23.776884]
[1733154424569,20.0,229.38,229.21,26.15]
[1733154424570,55.886,229.37,229.21,26.15]
[1733154424890,20.0,229.34,229.17,12.56973584]
[1733154425164,20.0,229.34,229.17,38.71973584]
[1733154425369,20.0,229.33,229.17,38.71973584]
[1733154425565,20.0,229.34,229.17,20.11308786]